[Event "Early-Titled-Tuesday-Blitz-August-29-2023"]
[Site "Chess.com"]
[Date "2023.08.29"]
[Round "1"]
[White "snowlord"]
[Black "stasOR4ik"]
[Result "1-0"]
[WhiteElo "2906"]
[BlackElo "2482"]
[TimeControl "180+1"]
[EndTime "8:01:47 PDT"]
[Termination "snowlord won by resignation"]

1. Nf3 {[%clk 0:03:00.9]} 1... d5 {[%clk 0:02:56.5]} 2. g3 {[%clk 0:03:00.7]}
2... c5 {[%clk 0:02:56.4]} 3. Bg2 {[%clk 0:03:00.7]} 3... Nc6 {[%clk 0:02:56.6]}
4. d4 {[%clk 0:03:01.1]} 4... Nf6 {[%clk 0:02:53.5]} 5. O-O {[%clk 0:03:00.3]}
5... cxd4 {[%clk 0:02:50.9]} 6. Nxd4 {[%clk 0:03:00.1]} 6... e5 {[%clk
0:02:51.6]} 7. Nxc6 {[%clk 0:03:00.5]} 7... bxc6 {[%clk 0:02:52.5]} 8. c4 {[%clk
0:03:01.4]} 8... Be6 {[%clk 0:02:52.3]} 9. Nc3 {[%clk 0:02:56.3]} 9... Be7
{[%clk 0:02:48.7]} 10. Bg5 {[%clk 0:02:53.9]} 10... d4 {[%clk 0:02:46.3]} 11.
Bxf6 {[%clk 0:02:49.9]} 11... Bxf6 {[%clk 0:02:44.5]} 12. Bxc6+ {[%clk
0:02:49.9]} 12... Bd7 {[%clk 0:02:41.8]} 13. Bxa8 {[%clk 0:02:38.1]} 13... Qxa8
{[%clk 0:02:42.7]} 14. Nd5 {[%clk 0:02:38.1]} 14... O-O {[%clk 0:02:40]} 15. e3
{[%clk 0:02:34.6]} 15... dxe3 {[%clk 0:02:37.7]} 16. Nxf6+ {[%clk 0:02:29.8]}
16... gxf6 {[%clk 0:02:35.1]} 17. Qxd7 {[%clk 0:02:30.7]} 17... e2 {[%clk
0:02:32.9]} 18. Rfe1 {[%clk 0:02:30.9]} 1-0

[Event "Early-Titled-Tuesday-Blitz-August-29-2023"]
[Site "Chess.com"]
[Date "2023.08.29"]
[Round "1"]
[White "betta2004"]
[Black "fireheart92"]
[Result "0-1"]
[WhiteElo "2510"]
[BlackElo "2974"]
[TimeControl "180+1"]
[EndTime "8:02:20 PDT"]
[Termination "fireheart92 won by resignation"]

1. e4 {[%clk 0:02:59.7]} 1... e5 {[%clk 0:02:59.2]} 2. Nf3 {[%clk 0:02:59]} 2...
Nc6 {[%clk 0:02:59.3]} 3. c3 {[%clk 0:02:59.6]} 3... d5 {[%clk 0:02:56.5]} 4.
Qa4 {[%clk 0:02:57.2]} 4... Bd7 {[%clk 0:02:56.6]} 5. exd5 {[%clk 0:02:56]} 5...
Nd4 {[%clk 0:02:56.6]} 6. Qd1 {[%clk 0:02:56]} 6... Nxf3+ {[%clk 0:02:56.8]} 7.
Qxf3 {[%clk 0:02:56.9]} 7... Bd6 {[%clk 0:02:57]} 8. Bc4 {[%clk 0:02:56.6]} 8...
f5 {[%clk 0:02:38.4]} 9. d3 {[%clk 0:02:56.2]} 9... Nf6 {[%clk 0:02:38.6]} 10.
O-O {[%clk 0:02:55.7]} 10... O-O {[%clk 0:02:38.6]} 11. Nd2 {[%clk 0:02:53.3]}
11... b5 {[%clk 0:02:37.8]} 12. Bb3 {[%clk 0:02:52.9]} 12... Kh8 {[%clk
0:02:37.3]} 13. a4 {[%clk 0:02:52.3]} 13... e4 {[%clk 0:02:31.5]} 14. dxe4
{[%clk 0:02:49.8]} 14... fxe4 {[%clk 0:02:31.8]} 15. Nxe4 {[%clk 0:02:45.7]}
15... Ng4 {[%clk 0:02:30.8]} 16. Qd3 {[%clk 0:02:33.6]} 16... Bxh2+ {[%clk
0:02:27.5]} 17. Kh1 {[%clk 0:02:34]} 17... Qh4 {[%clk 0:02:25.9]} 18. Qh3 {[%clk
0:02:08.3]} 18... Nxf2+ {[%clk 0:02:25.2]} 19. Nxf2 {[%clk 0:02:09.2]} 19...
Bxh3 {[%clk 0:02:24.9]} 0-1

[Event "Early-Titled-Tuesday-Blitz-August-29-2023"]
[Site "Chess.com"]
[Date "2023.08.29"]
[Round "1"]
[White "CFalcons8"]
[Black "ArtemDyachuk"]
[Result "0-1"]
[WhiteElo "2204"]
[BlackElo "2581"]
[TimeControl "180+1"]
[EndTime "8:02:40 PDT"]
[Termination "ArtemDyachuk won by resignation"]

1. e4 {[%clk 0:03:00.9]} 1... c5 {[%clk 0:02:58.1]} 2. d4 {[%clk 0:03:00.4]}
2... cxd4 {[%clk 0:02:57.7]} 3. Nf3 {[%clk 0:03:00.3]} 3... d6 {[%clk
0:02:51.1]} 4. Nxd4 {[%clk 0:02:59]} 4... Nf6 {[%clk 0:02:50.8]} 5. Nc3 {[%clk
0:02:57.5]} 5... Nc6 {[%clk 0:02:50.4]} 6. Bg5 {[%clk 0:02:51.1]} 6... e6 {[%clk
0:02:48.2]} 7. f4 {[%clk 0:02:48.5]} 7... a6 {[%clk 0:02:43.7]} 8. Nb3 {[%clk
0:02:45.6]} 8... Bd7 {[%clk 0:02:39.2]} 9. Qf3 {[%clk 0:02:44.3]} 9... Qc7
{[%clk 0:02:34.7]} 10. Bd3 {[%clk 0:02:42.8]} 10... Be7 {[%clk 0:02:31.2]} 11.
g4 {[%clk 0:02:31.3]} 11... h6 {[%clk 0:02:21.8]} 12. Bh4 {[%clk 0:02:28.8]}
12... g5 {[%clk 0:02:21.4]} 13. fxg5 {[%clk 0:02:23.7]} 13... Ne5 {[%clk
0:02:20]} 14. Qg3 {[%clk 0:02:07.2]} 14... Nfxg4 {[%clk 0:02:07.2]} 15. gxh6
{[%clk 0:01:59.9]} 15... Bxh4 {[%clk 0:02:06.5]} 16. Qxh4 {[%clk 0:01:57.9]}
16... Nf3+ {[%clk 0:02:06.4]} 0-1

[Event "Early-Titled-Tuesday-Blitz-August-29-2023"]
[Site "Chess.com"]
[Date "2023.08.29"]
[Round "1"]
[White "zimmm36"]
[Black "Gauravthegm"]
[Result "1-0"]
[WhiteElo "2718"]
[BlackElo "2399"]
[TimeControl "180+1"]
[EndTime "8:03:11 PDT"]
[Termination "zimmm36 won by checkmate"]

1. c4 {[%clk 0:03:00]} 1... c5 {[%clk 0:02:59.5]} 2. Nc3 {[%clk 0:02:59.7]} 2...
Nc6 {[%clk 0:02:59.5]} 3. Nf3 {[%clk 0:02:59.7]} 3... g6 {[%clk 0:02:59.5]} 4.
e3 {[%clk 0:02:59.6]} 4... Bg7 {[%clk 0:02:59.9]} 5. d4 {[%clk 0:03:00.5]} 5...
d6 {[%clk 0:02:56.8]} 6. d5 {[%clk 0:03:00.3]} 6... Ne5 {[%clk 0:02:56.8]} 7.
Nxe5 {[%clk 0:02:59.8]} 7... Bxe5 {[%clk 0:02:56.8]} 8. e4 {[%clk 0:03:00.7]}
8... Bg7 {[%clk 0:02:56.8]} 9. Bd3 {[%clk 0:03:01.1]} 9... e5 {[%clk 0:02:56.5]}
10. O-O {[%clk 0:02:59.7]} 10... Nf6 {[%clk 0:02:55]} 11. Rb1 {[%clk 0:02:59]}
11... O-O {[%clk 0:02:52.5]} 12. b4 {[%clk 0:02:59.1]} 12... cxb4 {[%clk
0:02:50.9]} 13. Rxb4 {[%clk 0:03:00]} 13... Nd7 {[%clk 0:02:49.1]} 14. Na4
{[%clk 0:02:54]} 14... Nc5 {[%clk 0:02:42.8]} 15. Nxc5 {[%clk 0:02:53.9]} 15...
dxc5 {[%clk 0:02:43.7]} 16. Rb3 {[%clk 0:02:54.5]} 16... b6 {[%clk 0:02:44]} 17.
Bc2 {[%clk 0:02:54.7]} 17... Bd7 {[%clk 0:02:44.3]} 18. Rg3 {[%clk 0:02:49.7]}
18... Kh8 {[%clk 0:02:39.3]} 19. Bg5 {[%clk 0:02:48.5]} 19... f6 {[%clk
0:02:38.4]} 20. Bd2 {[%clk 0:02:47.9]} 20... f5 {[%clk 0:02:36.9]} 21. exf5
{[%clk 0:02:47.6]} 21... gxf5 {[%clk 0:02:37]} 22. f4 {[%clk 0:02:48]} 22... e4
{[%clk 0:02:36]} 23. Rxg7 {[%clk 0:02:48.1]} 23... Kxg7 {[%clk 0:02:35]} 24.
Bc3+ {[%clk 0:02:49]} 24... Kg8 {[%clk 0:02:23.5]} 25. Qh5 {[%clk 0:02:47.1]}
25... Qe8 {[%clk 0:02:20.2]} 26. Qh4 {[%clk 0:02:41.8]} 26... Qg6 {[%clk
0:02:17.6]} 27. Re1 {[%clk 0:02:41.1]} 27... Rae8 {[%clk 0:02:07.2]} 28. Re3
{[%clk 0:02:40.5]} 28... Kf7 {[%clk 0:01:40.8]} 29. Rg3 {[%clk 0:02:40.1]} 29...
e3 {[%clk 0:01:36.3]} 30. Rxg6 {[%clk 0:02:39.7]} 30... hxg6 {[%clk 0:01:36.4]}
31. Qf6+ {[%clk 0:02:39.4]} 31... Kg8 {[%clk 0:01:36.2]} 32. Qg7# {[%clk
0:02:40.3]} 1-0

[Event "Early-Titled-Tuesday-Blitz-August-29-2023"]
[Site "Chess.com"]
[Date "2023.08.29"]
[Round "1"]
[White "Karina_Ivanova"]
[Black "Hamisandwich"]
[Result "1-0"]
[WhiteElo "2309"]
[BlackElo "2605"]
[TimeControl "180+1"]
[EndTime "8:03:22 PDT"]
[Termination "Karina_Ivanova won by resignation"]

1. Nf3 {[%clk 0:02:55.2]} 1... f5 {[%clk 0:02:58.8]} 2. g3 {[%clk 0:02:50.9]}
2... Nf6 {[%clk 0:02:58.4]} 3. Bg2 {[%clk 0:02:50.5]} 3... e6 {[%clk 0:02:58.2]}
4. d4 {[%clk 0:02:50.6]} 4... d5 {[%clk 0:02:50.9]} 5. Bf4 {[%clk 0:02:44.8]}
5... Bd6 {[%clk 0:02:49.4]} 6. Bxd6 {[%clk 0:02:43.8]} 6... Qxd6 {[%clk
0:02:47.6]} 7. O-O {[%clk 0:02:34.2]} 7... Nbd7 {[%clk 0:02:44.1]} 8. Nbd2
{[%clk 0:02:32.1]} 8... c5 {[%clk 0:02:32.1]} 9. c4 {[%clk 0:02:26.8]} 9... cxd4
{[%clk 0:02:20.4]} 10. Nxd4 {[%clk 0:02:25]} 10... Qb6 {[%clk 0:02:21.1]} 11. e3
{[%clk 0:02:13.5]} 11... O-O {[%clk 0:02:02.7]} 12. cxd5 {[%clk 0:02:10.2]}
12... Nxd5 {[%clk 0:02:03.6]} 13. Nc4 {[%clk 0:02:09.1]} 13... Qb4 {[%clk
0:01:58.7]} 14. Nxe6 {[%clk 0:02:03.5]} 14... N5f6 {[%clk 0:01:44]} 15. Nxf8
{[%clk 0:01:58.6]} 15... Qxc4 {[%clk 0:01:44.5]} 16. Nxd7 {[%clk 0:01:57]} 16...
Bxd7 {[%clk 0:01:45.4]} 17. Qb3 {[%clk 0:01:49.4]} 1-0

[Event "Early-Titled-Tuesday-Blitz-August-29-2023"]
[Site "Chess.com"]
[Date "2023.08.29"]
[Round "1"]
[White "AniJak"]
[Black "GAZZAN_3000"]
[Result "0-1"]
[WhiteElo "2348"]
[BlackElo "2665"]
[TimeControl "180+1"]
[EndTime "8:03:51 PDT"]
[Termination "GAZZAN_3000 won by resignation"]

1. e4 {[%clk 0:03:00.9]} 1... d6 {[%clk 0:02:57.8]} 2. d4 {[%clk 0:03:00.3]}
2... Nf6 {[%clk 0:02:58.2]} 3. Nc3 {[%clk 0:03:00.2]} 3... e5 {[%clk 0:02:56.1]}
4. Nge2 {[%clk 0:02:52.2]} 4... Be7 {[%clk 0:02:53.7]} 5. g3 {[%clk 0:02:51.2]}
5... O-O {[%clk 0:02:53.2]} 6. Bg2 {[%clk 0:02:51.4]} 6... c6 {[%clk 0:02:49.4]}
7. a4 {[%clk 0:02:49.3]} 7... Nbd7 {[%clk 0:02:49]} 8. O-O {[%clk 0:02:48.2]}
8... Re8 {[%clk 0:02:48.2]} 9. h3 {[%clk 0:02:47]} 9... Bf8 {[%clk 0:02:47]} 10.
Be3 {[%clk 0:02:41]} 10... exd4 {[%clk 0:02:43.8]} 11. Nxd4 {[%clk 0:02:39.4]}
11... Nc5 {[%clk 0:02:43.6]} 12. f3 {[%clk 0:02:19.7]} 12... d5 {[%clk
0:02:42.8]} 13. b4 {[%clk 0:02:17.6]} 13... Ncd7 {[%clk 0:02:36.7]} 14. exd5
{[%clk 0:02:10.6]} 14... Rxe3 {[%clk 0:02:34.2]} 15. dxc6 {[%clk 0:02:09.9]}
15... Rxc3 {[%clk 0:02:27.8]} 16. cxd7 {[%clk 0:01:53.9]} 16... Bxd7 {[%clk
0:02:27.3]} 17. Rb1 {[%clk 0:01:30.6]} 17... Qc7 {[%clk 0:02:22]} 18. a5 {[%clk
0:01:22.9]} 18... Rd8 {[%clk 0:02:13.3]} 19. Qe1 {[%clk 0:01:14.9]} 19... Ba4
{[%clk 0:01:58.2]} 20. Rb2 {[%clk 0:01:07.6]} 20... Rxd4 {[%clk 0:01:55.8]} 0-1

[Event "Early-Titled-Tuesday-Blitz-August-29-2023"]
[Site "Chess.com"]
[Date "2023.08.29"]
[Round "1"]
[White "VladimirKramnik"]
[Black "SHIVACalypso"]
[Result "1-0"]
[WhiteElo "2954"]
[BlackElo "2503"]
[TimeControl "180+1"]
[EndTime "8:03:54 PDT"]
[Termination "VladimirKramnik won by resignation"]

1. e4 {[%clk 0:03:00.9]} 1... e6 {[%clk 0:02:59.6]} 2. d4 {[%clk 0:03:00.3]}
2... d5 {[%clk 0:02:58.9]} 3. exd5 {[%clk 0:02:59.9]} 3... exd5 {[%clk
0:02:58.8]} 4. Nf3 {[%clk 0:03:00.6]} 4... Nf6 {[%clk 0:02:59.3]} 5. Bd3 {[%clk
0:03:00.5]} 5... Bd6 {[%clk 0:02:59.7]} 6. O-O {[%clk 0:03:00.9]} 6... O-O
{[%clk 0:02:59.5]} 7. Bg5 {[%clk 0:03:01.5]} 7... h6 {[%clk 0:02:59.6]} 8. Bh4
{[%clk 0:03:00.7]} 8... Be6 {[%clk 0:02:59.4]} 9. Nbd2 {[%clk 0:02:55.9]} 9...
c6 {[%clk 0:02:57.7]} 10. c3 {[%clk 0:02:50.6]} 10... Nbd7 {[%clk 0:02:57.4]}
11. Qc2 {[%clk 0:02:50.2]} 11... Qc7 {[%clk 0:02:56.9]} 12. Rfe1 {[%clk
0:02:49.1]} 12... Rae8 {[%clk 0:02:50.2]} 13. Bg3 {[%clk 0:02:46.9]} 13... Bxg3
{[%clk 0:02:49.3]} 14. hxg3 {[%clk 0:02:46.5]} 14... Re7 {[%clk 0:02:43.8]} 15.
Nf1 {[%clk 0:02:42.3]} 15... Rfe8 {[%clk 0:02:43.2]} 16. Ne3 {[%clk 0:02:34.8]}
16... c5 {[%clk 0:02:36.7]} 17. dxc5 {[%clk 0:02:31.7]} 17... Nxc5 {[%clk
0:02:36.2]} 18. Nd4 {[%clk 0:02:21.3]} 18... Nfe4 {[%clk 0:02:20.7]} 19. Bb5
{[%clk 0:02:17.9]} 19... Rd8 {[%clk 0:02:13]} 20. Rad1 {[%clk 0:02:15]} 20... a6
{[%clk 0:02:12.8]} 21. Bf1 {[%clk 0:02:14.2]} 21... Bd7 {[%clk 0:01:29.1]} 22.
Nxd5 {[%clk 0:02:11]} 22... Qd6 {[%clk 0:01:24.1]} 23. Nxe7+ {[%clk 0:02:08.9]}
23... Qxe7 {[%clk 0:01:24.5]} 24. f3 {[%clk 0:02:04.7]} 1-0

[Event "Early-Titled-Tuesday-Blitz-August-29-2023"]
[Site "Chess.com"]
[Date "2023.08.29"]
[Round "1"]
[White "BillCoe"]
[Black "zabivol_mc"]
[Result "0-1"]
[WhiteElo "2118"]
[BlackElo "2569"]
[TimeControl "180+1"]
[EndTime "8:03:58 PDT"]
[Termination "zabivol_mc won by resignation"]

1. e4 {[%clk 0:03:00.1]} 1... e6 {[%clk 0:02:55.5]} 2. d4 {[%clk 0:02:59.7]}
2... d5 {[%clk 0:02:55.2]} 3. Nd2 {[%clk 0:03:00.2]} 3... c5 {[%clk 0:02:46.3]}
4. Ngf3 {[%clk 0:02:59.4]} 4... Nc6 {[%clk 0:02:44.3]} 5. exd5 {[%clk
0:02:58.8]} 5... exd5 {[%clk 0:02:43.5]} 6. dxc5 {[%clk 0:02:56.8]} 6... Bxc5
{[%clk 0:02:39.1]} 7. Nb3 {[%clk 0:02:56.5]} 7... Bb6 {[%clk 0:02:37.4]} 8. Qe2+
{[%clk 0:02:55.2]} 8... Nge7 {[%clk 0:02:34.1]} 9. Bg5 {[%clk 0:02:49.2]} 9...
O-O {[%clk 0:02:28.2]} 10. O-O-O {[%clk 0:02:46.8]} 10... Bf5 {[%clk 0:02:18.5]}
11. Ne5 {[%clk 0:02:36.2]} 11... Qd6 {[%clk 0:01:55.6]} 12. Nxc6 {[%clk
0:02:28.9]} 12... Nxc6 {[%clk 0:01:56.5]} 13. g3 {[%clk 0:02:20.1]} 13... Rac8
{[%clk 0:01:51.5]} 14. Qd2 {[%clk 0:02:01.8]} 14... Nb4 {[%clk 0:01:47.2]} 15.
Na1 {[%clk 0:01:21.9]} 15... Nxc2 {[%clk 0:01:37.4]} 16. Nxc2 {[%clk 0:01:17.3]}
16... Rxc2+ {[%clk 0:01:36]} 17. Qxc2 {[%clk 0:01:18.2]} 17... Bxc2 {[%clk
0:01:36.7]} 18. Kxc2 {[%clk 0:01:18.9]} 18... Qg6+ {[%clk 0:01:35.2]} 0-1

[Event "Early-Titled-Tuesday-Blitz-August-29-2023"]
[Site "Chess.com"]
[Date "2023.08.29"]
[Round "1"]
[White "mistrzemi"]
[Black "Dedic8"]
[Result "0-1"]
[WhiteElo "2441"]
[BlackElo "2824"]
[TimeControl "180+1"]
[EndTime "8:04:12 PDT"]
[Termination "Dedic8 won by resignation"]

1. e4 {[%clk 0:02:59.2]} 1... e5 {[%clk 0:03:00.7]} 2. Nf3 {[%clk 0:02:59.3]}
2... Nc6 {[%clk 0:03:01.5]} 3. Bc4 {[%clk 0:02:59.2]} 3... Nf6 {[%clk
0:03:01.6]} 4. d3 {[%clk 0:02:59.3]} 4... Bc5 {[%clk 0:03:02.1]} 5. O-O {[%clk
0:02:58.3]} 5... d6 {[%clk 0:03:02.8]} 6. Re1 {[%clk 0:02:58.5]} 6... O-O {[%clk
0:03:03.2]} 7. c3 {[%clk 0:02:58.6]} 7... a5 {[%clk 0:03:03.4]} 8. a4 {[%clk
0:02:52.8]} 8... Ba7 {[%clk 0:02:58.7]} 9. Nbd2 {[%clk 0:02:45.2]} 9... Ng4
{[%clk 0:02:53.7]} 10. Re2 {[%clk 0:02:42.6]} 10... Kh8 {[%clk 0:02:54.1]} 11.
h3 {[%clk 0:02:40.5]} 11... Nh6 {[%clk 0:02:54.7]} 12. Nf1 {[%clk 0:02:38.8]}
12... f5 {[%clk 0:02:55.3]} 13. Bg5 {[%clk 0:02:00.7]} 13... Qe8 {[%clk
0:02:53.5]} 14. Ne3 {[%clk 0:01:48.9]} 14... Bxe3 {[%clk 0:02:35.8]} 15. Bxe3
{[%clk 0:01:35.8]} 15... f4 {[%clk 0:02:34.1]} 16. Bc1 {[%clk 0:01:34.3]} 16...
Qh5 {[%clk 0:02:34.7]} 17. Nh2 {[%clk 0:00:27.3]} 17... Bxh3 {[%clk 0:02:35.3]}
18. gxh3 {[%clk 0:00:26.5]} 18... f3 {[%clk 0:02:36]} 19. Re3 {[%clk 0:00:15.8]}
19... Qg6+ {[%clk 0:02:33.3]} 20. Kf1 {[%clk 0:00:15.5]} 20... Qg2+ {[%clk
0:02:33.2]} 21. Ke1 {[%clk 0:00:15.8]} 21... Qxh2 {[%clk 0:02:33.9]} 22. Kd2
{[%clk 0:00:16.4]} 22... Qxf2+ {[%clk 0:02:33.6]} 0-1

[Event "Early-Titled-Tuesday-Blitz-August-29-2023"]
[Site "Chess.com"]
[Date "2023.08.29"]
[Round "1"]
[White "Agibileg"]
[Black "RAMBO1STBLOOD"]
[Result "1-0"]
[WhiteElo "2608"]
[BlackElo "2263"]
[TimeControl "180+1"]
[EndTime "8:04:16 PDT"]
[Termination "Agibileg won by resignation"]

1. d4 {[%clk 0:03:00.9]} 1... f5 {[%clk 0:02:57]} 2. g3 {[%clk 0:03:00.1]} 2...
Nf6 {[%clk 0:02:56.1]} 3. Bg2 {[%clk 0:03:00.4]} 3... d6 {[%clk 0:02:56.1]} 4.
Nf3 {[%clk 0:03:00.6]} 4... g6 {[%clk 0:02:56]} 5. O-O {[%clk 0:03:00.9]} 5...
Bg7 {[%clk 0:02:56.4]} 6. c4 {[%clk 0:03:01.4]} 6... O-O {[%clk 0:02:56.7]} 7.
Nc3 {[%clk 0:03:01]} 7... Qe8 {[%clk 0:02:56]} 8. b3 {[%clk 0:02:46.2]} 8... e5
{[%clk 0:02:52.6]} 9. Nb5 {[%clk 0:02:31.5]} 9... Na6 {[%clk 0:02:49.4]} 10.
dxe5 {[%clk 0:02:21.9]} 10... dxe5 {[%clk 0:02:48.4]} 11. Ba3 {[%clk 0:02:13.8]}
11... Rf7 {[%clk 0:02:42.8]} 12. Qc2 {[%clk 0:01:43.2]} 12... e4 {[%clk
0:02:41.4]} 13. Ng5 {[%clk 0:01:42.6]} 13... Rd7 {[%clk 0:02:39]} 14. Rad1
{[%clk 0:01:42.6]} 14... h6 {[%clk 0:02:36.1]} 15. Nh3 {[%clk 0:01:39.8]} 15...
g5 {[%clk 0:02:34.9]} 16. f3 {[%clk 0:01:35.7]} 16... exf3 {[%clk 0:02:31.4]}
17. exf3 {[%clk 0:01:33.3]} 17... Rxd1 {[%clk 0:02:29.1]} 18. Rxd1 {[%clk
0:01:25.8]} 18... Be6 {[%clk 0:02:27.2]} 19. f4 {[%clk 0:01:22.4]} 19... g4
{[%clk 0:02:12.2]} 20. Nf2 {[%clk 0:01:22.1]} 20... Rb8 {[%clk 0:02:07.2]} 21.
Re1 {[%clk 0:01:11.8]} 21... Qf7 {[%clk 0:02:05]} 22. Bb2 {[%clk 0:01:09.8]}
22... Nb4 {[%clk 0:01:58.9]} 23. Qd2 {[%clk 0:01:09.3]} 23... Nc6 {[%clk
0:01:53.8]} 24. Bxf6 {[%clk 0:01:07.7]} 24... Bxf6 {[%clk 0:01:50.4]} 25. Rxe6
{[%clk 0:01:07.1]} 1-0

[Event "Early-Titled-Tuesday-Blitz-August-29-2023"]
[Site "Chess.com"]
[Date "2023.08.29"]
[Round "1"]
[White "ChessArchitect64"]
[Black "Chessdreamer2020"]
[Result "0-1"]
[WhiteElo "2229"]
[BlackElo "2599"]
[TimeControl "180+1"]
[EndTime "8:04:21 PDT"]
[Termination "Chessdreamer2020 won by checkmate"]

1. c4 {[%clk 0:03:00.9]} 1... d6 {[%clk 0:02:58.5]} 2. e3 {[%clk 0:02:59.8]}
2... e5 {[%clk 0:02:57.6]} 3. Nc3 {[%clk 0:02:58.5]} 3... Nd7 {[%clk 0:02:56.4]}
4. d3 {[%clk 0:02:58.4]} 4... g6 {[%clk 0:02:55.4]} 5. Nf3 {[%clk 0:02:58.7]}
5... Bg7 {[%clk 0:02:55.3]} 6. Be2 {[%clk 0:02:59]} 6... Ne7 {[%clk 0:02:55.4]}
7. O-O {[%clk 0:02:59.3]} 7... O-O {[%clk 0:02:55.8]} 8. Rb1 {[%clk 0:02:52.9]}
8... f5 {[%clk 0:02:55]} 9. Qc2 {[%clk 0:02:47.4]} 9... a5 {[%clk 0:02:53]} 10.
a3 {[%clk 0:02:46.9]} 10... h6 {[%clk 0:02:51.9]} 11. b4 {[%clk 0:02:46.8]}
11... axb4 {[%clk 0:02:52.8]} 12. axb4 {[%clk 0:02:47.7]} 12... g5 {[%clk
0:02:53.4]} 13. Bb2 {[%clk 0:02:37.4]} 13... Ng6 {[%clk 0:02:53.5]} 14. Nd5
{[%clk 0:02:36.4]} 14... c6 {[%clk 0:02:48.7]} 15. Nc3 {[%clk 0:02:36]} 15... g4
{[%clk 0:02:48]} 16. Nd2 {[%clk 0:02:34.1]} 16... h5 {[%clk 0:02:48.4]} 17. b5
{[%clk 0:02:25.5]} 17... Nc5 {[%clk 0:02:42.2]} 18. d4 {[%clk 0:02:21.1]} 18...
exd4 {[%clk 0:02:40.2]} 19. exd4 {[%clk 0:02:20.8]} 19... Bxd4 {[%clk
0:02:40.1]} 20. Nb3 {[%clk 0:02:16.3]} 20... Nxb3 {[%clk 0:02:38.4]} 21. Qxb3
{[%clk 0:02:17.2]} 21... Nf4 {[%clk 0:02:30]} 22. Rbd1 {[%clk 0:02:11.2]} 22...
Bxc3 {[%clk 0:02:19.4]} 23. Bxc3 {[%clk 0:02:08.9]} 23... Nxe2+ {[%clk 0:02:19]}
24. Kh1 {[%clk 0:02:09.4]} 24... Nxc3 {[%clk 0:02:18.7]} 25. Qxc3 {[%clk
0:02:08.1]} 25... Qf6 {[%clk 0:02:18.9]} 26. Qd2 {[%clk 0:02:05.5]} 26... Be6
{[%clk 0:02:12.3]} 27. Qf4 {[%clk 0:01:51.2]} 27... d5 {[%clk 0:02:09.3]} 28. c5
{[%clk 0:01:45.7]} 28... Rfe8 {[%clk 0:01:58.6]} 29. Rfe1 {[%clk 0:01:45.2]}
29... Bf7 {[%clk 0:01:58]} 30. b6 {[%clk 0:01:41.7]} 30... Kg7 {[%clk
0:01:55.5]} 31. Qc7 {[%clk 0:01:40.8]} 31... Rxe1+ {[%clk 0:01:55.3]} 32. Rxe1
{[%clk 0:01:41]} 32... Ra1 {[%clk 0:01:55.6]} 33. Rg1 {[%clk 0:01:20.7]} 33...
Rxg1+ {[%clk 0:01:54.6]} 34. Kxg1 {[%clk 0:01:21.6]} 34... Qa1# {[%clk 0:01:55]}
0-1

[Event "Early-Titled-Tuesday-Blitz-August-29-2023"]
[Site "Chess.com"]
[Date "2023.08.29"]
[Round "1"]
[White "Henryk_S"]
[Black "Doomfist26"]
[Result "0-1"]
[WhiteElo "2125"]
[BlackElo "2563"]
[TimeControl "180+1"]
[EndTime "8:04:23 PDT"]
[Termination "Doomfist26 won by resignation"]

1. e4 {[%clk 0:02:59.2]} 1... c5 {[%clk 0:02:57.8]} 2. Nf3 {[%clk 0:02:57.2]}
2... d6 {[%clk 0:02:58.1]} 3. c3 {[%clk 0:02:56.5]} 3... Nf6 {[%clk 0:02:57.7]}
4. h3 {[%clk 0:02:52.7]} 4... g6 {[%clk 0:02:54.8]} 5. Bb5+ {[%clk 0:02:49.3]}
5... Bd7 {[%clk 0:02:48.7]} 6. Bxd7+ {[%clk 0:02:43.8]} 6... Nbxd7 {[%clk
0:02:49.6]} 7. d3 {[%clk 0:02:41.3]} 7... Bg7 {[%clk 0:02:49.6]} 8. O-O {[%clk
0:02:41.7]} 8... O-O {[%clk 0:02:50.2]} 9. Be3 {[%clk 0:02:39.2]} 9... Rc8
{[%clk 0:02:47.3]} 10. Nbd2 {[%clk 0:02:38.3]} 10... b5 {[%clk 0:02:45.2]} 11.
a4 {[%clk 0:02:36.2]} 11... a6 {[%clk 0:02:34.8]} 12. axb5 {[%clk 0:02:26.4]}
12... axb5 {[%clk 0:02:34.5]} 13. Qb3 {[%clk 0:02:26.2]} 13... Qb6 {[%clk
0:02:16.3]} 14. Ra2 {[%clk 0:02:19.1]} 14... Qc6 {[%clk 0:02:00.8]} 15. Rfa1
{[%clk 0:02:10]} 15... c4 {[%clk 0:02:00.7]} 16. Qc2 {[%clk 0:01:59.2]} 16...
cxd3 {[%clk 0:01:59.1]} 17. Qxd3 {[%clk 0:01:59.1]} 17... d5 {[%clk 0:01:33.1]}
18. e5 {[%clk 0:01:52]} 18... Ne4 {[%clk 0:01:28.6]} 19. Ra6 {[%clk 0:01:46.8]}
19... Ndc5 {[%clk 0:01:21.4]} 20. Bxc5 {[%clk 0:01:31.5]} 20... Nxc5 {[%clk
0:01:20.8]} 21. Qe2 {[%clk 0:01:23.6]} 21... Nxa6 {[%clk 0:01:19.8]} 0-1